Cogmind - Beta 15 @@@ ROGUE MODE // 2025.05.09 @ 20:49:42 Player: Heclapar Result: Destroyed by Y-54 Guardian with Gatling Laser Performance ------------- Evolutions (0) 0 Regions Visited (3) 600 Robots Destroyed (23) 115 Value Destroyed (594) 594 Prototype IDs (0) 0 Alien Tech Used (0) 0 Bonus (0) 0 TOTAL SCORE: 1309 Bonus ------- None Cogmind --------- Core Integrity 0/250 Matter 300/300 Energy 83/125 System Corruption 0% Temperature Warm (101) Movement Treading (320) Ox2 Location -7/Recycling Parts ------- > --- POWER (1) -------- Light Ion Engine > --- PROPULSION (2) --- Light Treads > --- UTILITY (2) ------ Disposable Heat Sink High-capacity Storage Unit > --- WEAPON (2) ------- Heavy Mace > --- INVENTORY (20) --- Aluminum Leg Grenade Launcher Peak State ------------ > --- POWER ------------ Nuclear Core > --- PROPULSION ------- Light Treads Light Treads > --- UTILITY ---------- Disposable Heat Sink High-capacity Storage Unit > --- WEAPON ----------- Plasma Cannon Subdweller Machine Gun > --- INVENTORY -------- Light Ion Engine Light Treads Aluminum Leg Grenade Launcher Heavy Mace [Rating: 14] Favorites ----------- Power Light Ion Engine Engine Light Ion Engine Power Core Nuclear Core Propulsion Aluminum Leg Treads Light Treads Leg Aluminum Leg Utility Small Storage Unit Device Disposable Heat Sink Storage Small Storage Unit Processor Transport Network Coupler Protection Light Armor Plating Weapon Light Assault Rifle Energy Gun Small Laser Energy Cannon Subdweller Beam Cannon Ballistic Gun Light Assault Rifle Impact Weapon Heavy Mace Build | -11 -10 -10 -7 ------- Run | Yrd Mat Sub Rec Slots Evolved . | . . . . Power . | . . . . Propulsion . | . . . . Utility . | . . . . Weapon . | . . . . Parts Attached 21 | . 6 10 5 Power 3 | . . 2 1 Engine 2 | . . 2 . Core 1 | . . . 1 Reactor . | . . . . Propulsion 7 | . 4 2 1 Treads 3 | . . 2 1 Leg 4 | . 4 . . Wheel . | . . . . Hover . | . . . . Flight . | . . . . Utility 5 | . 1 3 1 Device 2 | . . 2 . Storage 1 | . . . 1 Processor 1 | . 1 . . Hackware . | . . . . Protection 1 | . . 1 . Artifact . | . . . . Weapon 6 | . 1 3 2 Energy Gun . | . . . . Energy Cannon 2 | . . 1 1 Ballistic Gun 3 | . 1 2 . Ballistic Cannon . | . . . . Launcher . | . . . . Special Weapon . | . . . . Impact Weapon 1 | . . . 1 Slashing Weapon . | . . . . Piercing Weapon . | . . . . Special Melee Weapon . | . . . . Unidentified Prototypes . | . . . . Parts Lost 11 | . 2 3 6 Power 2 | . . 1 1 Propulsion 3 | . 1 . 2 Utility 1 | . . 1 . Weapon 5 | . 1 1 3 Highest Loss Streak 5 | . 2 2 5 To Critical Strikes . | . . . . Average Backups 6 | . 6 6 5 Power . | . 1 . 1 Propulsion 2 | . 3 2 2 Utility . | . . 1 . Weapon 1 | . 1 1 2 Tool/Special . | . . . . Unused Backups 8 | . 5 2 1 Power 2 | . 1 1 . Propulsion 2 | . 2 . . Utility 1 | . 1 . . Weapon 3 | . 1 1 1 Tool/Special . | . . . . Average Slot Usage (%) 95 | . 88 98 98 Engine 10 | . 14 13 2 Core 2 | . . . 11 Treads 9 | . . 6 27 Leg 17 | . 27 21 . Device 7 | . . 9 14 Storage 14 | . 14 14 14 Processor 2 | . 5 1 . Energy Gun 5 | . 14 1 . Energy Cannon 4 | . . 9 3 Ballistic Gun 17 | . 12 16 24 Peak Build Rating 14 | . 7 11 14 Average Rating 8 | . 6 9 11 On Entrance 7 | 6 6 6 10 Naked Turns . | . . . . Heaviest Build 59 | 10 10 24 59 Greatest Support 40 | 20 20 40 40 Greatest Overweight (x) 2 | . . 1 2 Average Overweight (x) . | . . . . Largest Inventory Capacity 20 | . 8 8 20 Average Capacity 10 | . 8 8 15 Most Carried 8 | . 8 8 7 Average Carried 6 | . 6 6 5 Final Capacity 20 | 8 8 8 20 Final Carried 7 | 6 7 5 2 Class Distribution -------------------- 78% | Mutant 21% | Scavenger-Mutant Dominant Class ---------------- Mutant | -10/Materials Scavenger-Mutant | -10/Subcaves Mutant | -7/Recycling Resources | -11 -10 -10 -7 ----------- Run | Yrd Mat Sub Rec Matter Collected 501 | 200 81 138 82 Remotely . | . . . . Salvage Created 718 | . 210 330 178 Parts 55 | . 17 31 7 Haulers Intercepted . | . . . . Recyclers Shooed 1 | . . . 1 Parts Field Recycled . | . . . . Retrieved Matter . | . . . . Parts Self-Destructed 17 | . . 17 . Prevented . | . . . . Kills | -11 -10 -10 -7 ------- Run | Yrd Mat Sub Rec Combat Hostiles Destroyed 21 | . 7 12 2 Guns 17 | . 7 9 1 Cannons 4 | . . 3 1 Classes Destroyed 7 | . 2 3 2 Recycler 1 | . . . 1 Turret 1 | . . 1 . Swarmer 10 | . 3 7 . Grunt 4 | . 4 . . Duelist 1 | . . . 1 Sentry 2 | . . 1 1 Subdweller 4 | . . 4 . Best Kill Streak 3 | . 3 3 2 Combat Bots Only 3 | . 3 3 1 Max Kills in Single Turn 1 | . 1 1 1 Gunslinging . | . . . . Exploded . | . . . . Melee . | . . . . Uniques/NPCs Destroyed . | . . . . Combat | -11 -10 -10 -7 -------- Run | Yrd Mat Sub Rec Hostile Shots Fired 208 | . 36 90 82 Missed 65 | . 12 29 24 Hits 143 | . 24 61 58 Melee 5 | . . . 5 Projectile 138 | . 24 61 53 Damage Taken 1486 | . 436 515 535 Core 254 | . 113 70 71 Absorbed by Shields . | . . . . Core Remaining (%) 100 | 100 . . . Volleys Fired 75 | . 25 37 13 Largest 2 | . 2 2 2 Hottest 120 | . 60 120 110 Shots Fired 138 | . 50 67 21 Gun 116 | . 50 56 10 Cannon 22 | . . 11 11 Launcher . | . . . . Special . | . . . . Kinetic 90 | . 25 55 10 Thermal 48 | . 25 12 11 Explosive . | . . . . Electromagnetic . | . . . . Robot Hit Streak 12 | . 12 8 7 Robot Miss Streak 5 | . 5 3 3 Penetration Max . | . . . . Secondary Targets 1 | . . 1 . Max Gunslinging Chain 1 | . . 1 . Shots Hit Robots 79 | . 27 40 12 Core Hits 36 | . 12 19 5 Critical Kills . | . . . . Critical Parts Destroyed . | . . . . Critical Strikes . | . . . . Melee Attacks . | . . . . Impact . | . . . . Slashing . | . . . . Piercing . | . . . . Sneak Attacks . | . . . . Combat Hostiles . | . . . . Follow-up Attacks . | . . . . Damage Inflicted 1217 | . 277 665 275 Guns 814 | . 277 465 72 Cannons 403 | . . 200 203 Explosions . | . . . . Melee . | . . . . Ramming . | . . . . Kinetic 602 | . 65 465 72 Thermal 615 | . 212 200 203 Explosive . | . . . . Electromagnetic . | . . . . Impact . | . . . . Slashing . | . . . . Piercing . | . . . . Highest Corruption . | . . . . Average Corruption . | . . . . Corruption Purged . | . . . . Corruption Blocked . | . . . . Overload Shots . | . . . . Overflow Damage 24 | . . . 24 Projectiles 24 | . . . 24 Explosions . | . . . . Melee . | . . . . Knockbacks . | . . . . Impact . | . . . . Kinetic . | . . . . Secondary . | . . . . Self-Inflicted Damage . | . . . . Shots . | . . . . Rammed . | . . . . Targets Rammed . | . . . . Kicked . | . . . . Crushed . | . . . . Highest Temperature 192 | . 68 40 192 Average Temperature 45 | . 25 16 86 Received Heat Transfer 339 | . 60 165 114 Siege Activations . | . . . . Martial Activations . | . . . . Shielding Activations . | . . . . Robots Disrupted . | . . . . Combat Hostiles . | . . . . Robots Corrupted . | . . . . Combat Hostiles . | . . . . Parts Fried . | . . . . Impact Corruptions . | . . . . Robots Melted . | . . . . Combat Hostiles . | . . . . Parts Melted 3 | . 1 . 2 Heat Transferred 1134 | . 475 259 400 Parts Sabotaged . | . . . . Parts Stolen . | . . . . Parts Stripped . | . . . . Power Chain Reactions . | . . . . Alert | -11 -10 -10 -7 ------- Run | Yrd Mat Sub Rec Maximum Alert Level . | . . . . Low Security (%) 100 | . 100 . 100 Level 1 . | . . . . Level 2 . | . . . . Level 3 . | . . . . Level 4 . | . . . . Level 5 . | . . . . High Security . | . . . . Max Security . | . . . . Peak Influence 118 | . 111 . 118 Initial 118 | . . . 118 Average 29 | . 27 . 31 Influence Increases 595 | . 175 370 50 Destroy 0b10 Robot/C 360 | . 140 180 40 Destroy 0b10 Robot/NC 5 | . . . 5 Destroy Leader 30 | . 20 10 . Destroy Structure 5 | . . . 5 Lose Combat Pursuer 195 | . 15 180 . Influence Decreases 595 | . 120 177 298 Entered New Map 157 | . . 27 130 Time Decay 386 | . 100 140 146 Lost Part 52 | . 20 10 22 Squads Dispatched 1 | . 1 . . Investigation 1 | . 1 . . Extermination . | . . . . Reinforcement . | . . . . Assault . | . . . . Garrison . | . . . . Intercept . | . . . . Searches Triggered . | . . . . Construction Impeded . | . . . . Haulers Reinforced . | . . . . Active Scanning Responses . | . . . . Cargo Convoy Interrupts . | . . . . Stealth | -11 -10 -10 -7 --------- Run | Yrd Mat Sub Rec Distress Signals . | . . . . Communications Jammed . | . . . . Distress Signals . | . . . . Times Spotted 29 | . 12 14 3 Peak Tracking Total 4 | . 4 3 2 Tactical Retreats 6 | . 1 5 . Traps | -11 -10 -10 -7 ------- Run | Yrd Mat Sub Rec Traps Triggered 3 | . 3 . . Indirectly . | . . . . Trap Hack Attempts . | . . . . Triggered . | . . . . Disarmed . | . . . . Reprogrammed . | . . . . Reused . | . . . . Traps Extracted . | . . . . Installed . | . . . . Triggered . | . . . . Machines | -11 -10 -10 -7 ---------- Run | Yrd Mat Sub Rec Machines Disabled 2 | . . 2 . Max in Single Turn 1 | . . 1 . Machines Repaired . | . . . . Machines Dismantled . | . . . . Machines Sabotaged . | . . . . Overloaded Fab Kills . | . . . . Hacking | -11 -10 -10 -7 --------- Run | Yrd Mat Sub Rec Machines Accessed . | . . . . Terminals . | . . . . Fabricators . | . . . . Repair Stations . | . . . . Recycling Units . | . . . . Scanalyzers . | . . . . Garrison Access . | . . . . Total Hacks . | . . . . Successful . | . . . . Failed . | . . . . Catastrophic . | . . . . Database Lockouts . | . . . . Manual . | . . . . Terminals . | . . . . Fabricators . | . . . . Repair Stations . | . . . . Recycling Units . | . . . . Scanalyzers . | . . . . Garrison Access . | . . . . Terminal Hacks . | . . . . Fabricator Hacks . | . . . . Repair Station Hacks . | . . . . Recycling Unit Hacks . | . . . . Scanalyzer . | . . . . Garrison Access Hacks . | . . . . Unauthorized Hacks . | . . . . Terminals . | . . . . Fabricators . | . . . . Repair Stations . | . . . . Recycling Units . | . . . . Scanalyzers . | . . . . Garrison Access . | . . . . Data Cores Recovered . | . . . . Used . | . . . . Hacking Detections . | . . . . Full Trace Events . | . . . . Feedback Events . | . . . . Feedback Blocked . | . . . . Robot Schematics Acquired . | . . . . Robots Built . | . . . . Authchips . | . . . . Time . | . . . . Total Robot Build Rating . | . . . . Part Schematics Acquired . | . . . . Parts Built . | . . . . Authchips . | . . . . Time . | . . . . Total Part Build Rating . | . . . . Parts Repaired . | . . . . Time . | . . . . Parts Recycled . | . . . . Recycled Matter . | . . . . Retrieved Matter . | . . . . Retrieved Components . | . . . . Parts Scanalyzed . | . . . . Part Schematics Acquired . | . . . . Parts Damaged . | . . . . Bothacking | -11 -10 -10 -7 ------------ Run | Yrd Mat Sub Rec Used RIF Installer . | . . . . Robots Hacked . | . . . . Non-combat . | . . . . Combat . | . . . . Robot Hacks Applied . | . . . . Relay Couplers Released . | . . . . Fabnet Peak Effective % . | . . . . Robots Rewired . | . . . . Allies Hacked . | . . . . Hacks Repelled . | . . . . Allies | -11 -10 -10 -7 -------- Run | Yrd Mat Sub Rec Total Allies . | . . . . Largest Group . | . . . . Highest-Rated Group . | . . . . Highest-Rated Ally . | . . . . Total Orders . | . . . . Ally Attacks . | . . . . Total Damage . | . . . . Kills . | . . . . Allies Corrupted . | . . . . Allies Melted . | . . . . Intel | -11 -10 -10 -7 ------- Run | Yrd Mat Sub Rec Active Infowar (turns) 452 | . 221 231 . Optics 141 | . . 141 . T.N.C. 311 | . 221 90 . Robot Analysis Total . | . . . . Derelict Logs Recovered . | . . . . Drone Launches . | . . . . Drone Recoveries . | . . . . Exploration | -11 -10 -10 -7 ------------- Run | Yrd Mat Sub Rec Turns Passed 1844 | . 599 752 493 Spaces Moved 780 | 1 221 345 213 Core . | . . . . Treads 277 | . . 64 213 Legs 503 | 1 221 281 . Wheels . | . . . . Hover . | . . . . Flight . | . . . . Fastest Speed 120 | 120 120 120 160 Average Speed 155 | 120 120 151 198 Slowest Speed 320 | 120 120 190 320 Overloaded Moves . | . . . . Propulsion Burnouts . | . . . . Robots Hopped . | . . . . Potential Cave-ins . | . . . . Cave-ins Triggered . | . . . . Exploration Rate (%) 28 | 1 37 24 50 Regions Visited 3 Branch Regions 2 Pre-discovered Areas . | . . . . Known Exits Taken . | . . . . Unknown Exits Taken 3 | 1 1 1 . Scrap Searched . | . . . . Spaces Dug . | . . . . Terrain Destroyed 9 | . . 4 5 Melee . | . . . . Projectile 9 | . . 4 5 AOE . | . . . . Terrain Rammed . | . . . . Walls Destroyed . | . . . . Machines Disabled . | . . . . Actions | -11 -10 -10 -7 --------- Run | Yrd Mat Sub Rec Total 1282 | . 508 510 264 Wait 391 | . 253 110 28 Move 777 | . 220 344 213 Hop . | . . . . Pick Up 7 | . 2 3 2 Fast Attach 8 | . 5 3 . Attach 8 | . . 4 4 Detach . | . . . . Swap 7 | . 1 4 2 Drop 9 | . 2 5 2 Fire 75 | . 25 37 13 Melee . | . . . . Ram . | . . . . Kick . | . . . . Crush . | . . . . Escape Stasis . | . . . . Rewire . | . . . . Trap . | . . . . Miscellaneous . | . . . . Route ------- -11/Scrapyard -10/Materials (discovered 4 exits: [*Mat] / [*Min x2] / [*Sub]) -10/Subcaves (discovered 2 exits: [*Mat] / *Rec) -7/Recycling (discovered 1 exit: [*Fac]) History --------- Turn | Location | Event 1 | -11/Scrapyard | Discovered new exit (range 0) 1 | -11/Scrapyard | Entered Materials 230 | -10/Materials | Discovered new exit (range 8) 304 | -10/Materials | Build established: Mutant 385 | -10/Materials | Discovered new exit (range 12) 513 | -10/Materials | Discovered new exit (range 5) 591 | -10/Materials | Discovered new exit (range 6) 600 | -10/Materials | Entered Subcaves 606 | -10/Subcaves | Discovered new exit (range 5) 616 | -10/Subcaves | Shifting Twisted Machinery released Sub. Beam Cannon 1075 | -10/Subcaves | Core integrity fell below 50% 1098 | -10/Subcaves | Build established: Scavenger-Mutant 1266 | -10/Subcaves | Discovered new exit (range 10) 1352 | -10/Subcaves | Entered Recycling 1479 | -7/Recycling | Build established: Mutant 1571 | -7/Recycling | Discovered new exit (range 10) 1830 | -7/Recycling | Core integrity fell below 20% 1845 | -7/Recycling | Destroyed by Y-54 Guardian with Gatling Laser Last Messages --------------- 01737_ R-06 Scavenger collects Imp. Light Armor Plating. 01738_ R-06 Scavenger collects Com. Wheel. 01740_ R-06 Scavenger collects Lgt. Ion Engine. 01740_ R-06 Scavenger collects Com. Wheel. 01742_ R-06 Scavenger collects Sml. Storage Unit. 01773_ U-05 Engineer builds a Wall. 01813_ Y-54 Guardian springs to life. 01824_ Destroyed Imp. Melee Analysis Suite. 01829_ Sub. Machine Gun destroyed. 01838_ Lgt. Treads destroyed. 01838_ Core Shielding melted. 01838_ Carbon-fiber Leg melted. 01838_ L-41 Fighter destroyed. 01839_ Lgt. Treads destroyed. 01839_ Nuclear Core destroyed. 01842_ Plasma Cannon destroyed. 01843_ Acquired 28 matter. 01845_ R-06 Scavenger collects Microactuators. Map ----- +----------------------------------------------------+ | | | | | | | ?????????????????????????????????????????????????? | | ?????????????????????????????????????????????????? | | ?????????????????????????????????????????????????? | | ?????????????????????????????????????????????????? | | ?????????????????????????????????????????????????? | | ?????????????????????????????????????????????????? | | ?????????????????????????????????????????????????? | | ?????????????????????????????????????????????????? | | ?????????????????????????????????????????????????? | | ?????????????????????????????????????????????????? | | ?????????????????????????????????????????????????? | | ?????????????????????????????????????????????????? | | ??????????????????####???????????????????????????? | | ??????????????????? ???????????????????????????? | | ??????????????????? != ??????????????????????????? | | ???????????????????? ] ??????????????????????????? | | ?????????????????????!!??????????????????????????? | | ?????????????????????#+##+#??????????????????????? | | ?????????????????????# #???####+##????????????? | | ?????????????????????# #?? ! #????????????? | | ?????????????????????# r## ] #????????????? | | ???????????????????### Y + ! #????????????? | | ??????##############"" @## ! #????????????? | | ?????# ##"Y ;#?? #????????????? | | ?????# """ ##"" u##? ?? #????????????? | | ?????# "Y" #### #? ????? #????????????? | | ?????# " " # ## ???????#????????????? | | ??????? """ # r +?????????????????????? | | ??????? """ + #?????????????????????? | | ????????""" # ##### ????????????? | | ????????""" # ?????????????? | | ????????""" # #######????????????????? | | ??????? # r#??????????????????????? | | ?????? # + !???????????????? | | ?????# # # ! %! ???????????? | | ?????############## # [ ????????????? | | ??????????????????# #? ? ????????????? | | ????????????????### #?? ? ?????????????? | | ??###############"" #??##??????????????????? | | ??# ##"Y #??????????????????????? | | ??# ##"" #??????????????????????? | | ??# #### #??????????????????????? | | ??# + #??????????????????????? | | ??# """"" ##### ####??????????????????????? | | ??# """"" #???# %##????????????????????????? | | ??# """"" #???# % #????????????????????????? | | ??# #???# "" ??????????????????????? | +----------------------------------------------------+ Best States ------------- Heat Dissipation 25 Coolant Potential 50 Energy Generation 15 Energy Capacity 240 Matter Stores 300 Matter Capacity 300 Sight Range 21 Terrain Scan Density 10 Armor Coverage 150 Evasion (%) 55 Recoil Reduction 2 Item Schematics ----------------- None Robot Schematics ------------------ None Fabricated ------------ Nothing Repaired ---------- Nothing Alien Tech Used ----------------- None Achievements -------------- None Challenges ------------ None Game ------ Seed SpacefoldContainmentMeganuke Manual? 0 Play Time 00:08:46 Cumulative 105.4 hours Start 2025.05.09 @ 20:40:14 End 2025.05.09 @ 20:49:42 Sessions 1 Manual Loads 0 Difficulty Rogue Special Mode None Game No. 127 Rogue 127 Adventurer 0 Explorer 0 Win Type - Total 1 Types 1/0/0/0/0/0/0/0/0/0 Lore% 47 Gallery% 52 Achievement% 54 Wizard Run 0 Options --------- Layout 2 ASCII 0 Keyboard 0 Movement Mouse Keybinds 0 Fullscreen 1 Font 32/Terminus Map View 50x44 Zoom Use 0% Tactical HUD 1 Map Filters NONE Filters NONE Steam 1 RUN: 7b6b97c1-1d03-4c14-856f-e52062ccde77